[Event "US Masters"]
[Site "Charlotte USA"]
[Date "2023.11.23"]
[Round "2.5"]
[White "Burke, John M"]
[Black "Plotkin, Mark"]
[Result "1-0"]
[ECO "B06"]
[WhiteElo "2583"]
[BlackElo "2353"]
[PlyCount "63"]
[EventDate "2023.11.24"]
[EventType "swiss"]
[EventRounds "9"]
[EventCountry "USA"]
[Source "ChessMix"]
[SourceDate "2023.12.01"]
[TimeControl "5400+30"]

1. e4 {[%emt 0:06:11]} g6 {[%emt 0:00:12]} 2. d4 {[%emt 0:00:15]} Bg7 {
[%emt 0:00:06]} 3. Nc3 {[%emt 0:00:23]} d6 {[%emt 0:00:09]} 4. Be3 {
[%emt 0:00:25]} a6 {[%emt 0:02:01]} 5. h4 {[%emt 0:01:47]} h5 {[%emt 0:05:40]}
6. Nh3 {[%emt 0:00:58]} b5 {[%emt 0:03:47]} 7. Ng5 {[%emt 0:00:48]} Bb7 {
[%emt 0:03:50]} 8. Qd2 {[%emt 0:09:49]} Nf6 {[%emt 0:14:24]} 9. f3 {
[%emt 0:02:40]} Nbd7 {[%emt 0:10:15]} 10. O-O-O {[%emt 0:01:15]} e6 {
[%emt 0:06:45]} 11. a3 {[%emt 0:20:36]} Qe7 {[%emt 0:02:19]} 12. f4 {
[%emt 0:04:41]} Rd8 {[%emt 0:06:03]} 13. f5 {[%emt 0:05:50]} Ng4 {
[%emt 0:18:35]} 14. fxe6 {[%emt 0:12:35]} fxe6 {[%emt 0:00:11]} 15. Bd3 {
[%emt 0:00:38]} O-O {[%emt 0:00:59]} 16. e5 {[%emt 0:01:52]} dxe5 {
[%emt 0:01:16]} 17. Bxg6 {[%emt 0:00:45]} Ndf6 {[%emt 0:06:37]} 18. Qe2 {
[%emt 0:03:46]} Nxe3 {[%emt 0:02:15]} 19. Qxe3 {[%emt 0:00:04]} Rxd4 {
[%emt 0:08:14]} 20. Qxe5 {[%emt 0:01:39]} Nd5 {[%emt 0:03:10]} 21. Qxe6+ {
[%emt 0:01:39]} Qxe6 {[%emt 0:00:01]} 22. Nxe6 {[%emt 0:00:05]} Rxd1+ {
[%emt 0:01:27]} 23. Rxd1 {[%emt 0:00:09]} Bh6+ {[%emt 0:02:07]} 24. Kb1 {
[%emt 0:00:11]} Ne3 {[%emt 0:01:19]} 25. Rd7 {[%emt 0:02:24]} Rf6 {
[%emt 0:00:41]} 26. Bxh5 {[%emt 0:02:23]} Bxg2 {[%emt 0:00:28]} 27. Rxc7 {
[%emt 0:01:10]} Rf1+ {[%emt 0:00:06]} 28. Ka2 {[%emt 0:00:04]} Nxc2 {
[%emt 0:00:15]} 29. Bg6 {[%emt 0:01:23]} Ne3 {[%emt 0:00:37]} 30. Bh7+ {
[%emt 0:00:15]} Kh8 {[%emt 0:00:02]} 31. Bd3 {[%emt 0:00:05]} Rf6 {
[%emt 0:01:19]} 32. Rc8+ {[%emt 0:00:04]} 1-0